{"text_format":"1","workbook":"xlsx","n_sheets":3,"sheets":["Instruccions","Reformulació Pressupost Bc","Resum Pressupost"],"not_rendered":{"charts":0,"images":1,"macros":1,"external_links":0,"defined_names":7,"comments":1,"pivot_tables":0},"unopened":[],"bounds":{"document_bytes":16777216,"sheet_cells":100000,"rows_first":2000,"rows_last":500,"rows_between":2000,"halvings":0,"cell_chars":16384,"cell_head_chars":4096},"cells_cut":0,"cells_raw":0,"read":"whole","date_system":"1900"}

{"sheet":"Instruccions","index":0,"n_rows":18,"n_cols":9,"rows_kept":18,"cut":false,"hidden":false,"merged":[[10,1,10,17],[12,1,12,17],[14,1,14,17],[16,1,16,17],[1,8,1,11],[2,2,3,17],[4,2,4,17],[6,2,6,17],[8,1,8,17],[9,1,9,17]]}
[]
[null,null,null,null,null,null,null,null,"Doc_basic3_pressup_reformulat_Bc INSTRUCCIONS"]
[null,null,"SUBVENCIONS DE L’AJUNTAMENT DE BARCELONA PER L’ENFORTIMENT DE L’ECONOMIA SOCIAL I SOLIDÀRIA I PER LA INTERCOOPERACIÓ EN L’ESTRATÈGIA #ESSBCN2030 - ENFORTIM L’ESS 2025"]
[]
[null,null,"Aspectes rellevants relacionats amb la reformulació"]
[]
[null,null,"INSTRUCCIONS"]
[]
[null,"1. Emplenar només les cel·les en blanc de la pestanya  \"Reformulació Pressupost\" amb les dades econòmiques del projecte:"]
[null,"1.1  Emplenar els quadres DADES BÀSIQUES-PREVISIÓ DE DESPESES DEL PROJECTE SUBVENCIONABLE INICIAL, amb les dades econòmiques de la proposta inicial amb subvenció atorgada."]
[null,"1.2  Emplenar els quadres DADES BÀSIQUES-PREVISIÓ DE DESPESES DEL PROJECTE REFORMULAT, amb les dades econòmiques de la proposta de reformulació."]
[]
[null,"2. Revisar i emplenar només les cel·les en blanc de la pestanya  \"Resum Pressupost\" amb les dades econòmiques del projecte."]
[]
[null,"3. Imprimir els fulls de les 2 pestanyes (Reformulació pressupost i Resum Pressupost). En format pdf."]
[]
[null,"4. Si la sol·licitud es va presentar per via telemàtica, cal que registreu la documentació telemàticament dins la convocatòria específica com annexió de documents addicionals i feu servir el número de tràmit que el sistema de registre us va donar en el moment de la presentació de la sol·licitud de la subvenció."]
[null,"Enllaç per realitzar el tràmit."]

{"sheet":"Reformulació Pressupost Bc","index":1,"n_rows":158,"n_cols":15,"rows_kept":158,"cut":false,"hidden":false,"merged":[[10,0,10,3],[10,6,10,9],[16,12,16,14],[14,1,14,3],[16,0,16,4],[14,7,14,9],[12,7,12,9],[13,7,13,9],[11,1,11,3],[12,1,12,3],[13,1,13,3],[11,7,11,9],[1,1,1,10],[3,0,3,14],[6,1,6,9],[7,1,7,9],[8,1,8,9],[4,0,4,14],[140,0,140,14],[141,0,141,14],[142,0,142,14],[143,0,143,14],[16,6,16,10],[135,0,135,14],[136,0,136,14],[137,0,137,14],[138,0,138,14],[139,0,139,14],[144,0,144,14],[157,0,157,14],[154,0,154,14],[155,0,155,14],[149,0,149,14],[150,0,150,14],[151,0,151,14],[152,0,152,14],[153,0,153,14],[156,0,156,14],[148,0,148,14],[145,0,145,14],[146,0,146,14],[147,0,147,14]]}
[]
[null,"Reformulació pressupost Modalitat Bc"]
[]
["Programa de subvencions de l'Ajuntament de Barcelona per l'enfortiment de l'Economia Social i Solidària i per la intercooperació en l'Estratègia #ESSBCN2030 - ENFORTIM L’ESS 2025"]
["EMPLENAR NOMÉS LES CEL·LES EN BLANC"]
[]
["Nom de la persona jurídica"]
["NIF de la persona jurídica"]
["Nom del projecte subvencionable"]
[]
["DADES BÀSIQUES DEL PROJECTE INICIAL SOL·LICITAT\n(indicar les dades sol·licitades a la proposta inicial)",null,null,null,null,null,"DADES BÀSIQUES PROJECTE REFORMULAT"]
["Import total del projecte subvencionable",null,null,null,null,null,"Import total del projecte REFORMULAT",null,null,null,{"$f":"IF(H12<B12*0.7,\"No es pot reformular més d'un 30%\",\"\")","v":""}]
["Import imputable a la subvenció municipal",null,null,null,null,null,"Import imputable a la subvenció ATORGADA\n(indicar l'import atorgat a la resolució)"]
["Import de l'aportació i/o cofinançament de l'organització",{"$f":"+B12-B13","v":0},null,null,null,null,"Import de l'aportació i/o cofinançament de l'organització",{"$f":"H12-H13","v":0}]
["% de l'import sol·licitat respecte el total del projecte subvencionable (màxim 80%*)",{"$f":"IF(B13>0,B13/B12,\"\")","v":""},null,null,"* La quantia de la subvenció atorgada no superarà el 80% de la despesa total del projecte a subvencionar. ",null,"% de l'import sol·licitat respecte el total del projecte subvencionable (màxim 80%*)\n(ha de ser igual o inferior respecte el % de la sol·licitud inicial)",{"$f":"IF(H13>0,H13/H12,\"\")","v":""},null,null,{"$f":"IF(H15=\"\",\"\",IF(H15>0.8,\"La quantia de la subvenció atorgada no pot superar el 80% de la despesa total del projecte\",IF(H15>B15,\"Ha de ser igual o inferior al % de la proposta inicial\",\"\")))","v":""}]
[]
["PREVISIÓ DE DESPESES DEL PROJECTE SUBVENCIONABLE INICIAL",null,null,null,null,null,"PREVISIÓ DE DESPESES DEL PROJECTE REFORMULAT",null,null,null,null,null,"DIFERÈNCIA REFORMULACIÓ I PROJECTE INICIAL"]
[]
["Partides","Import imputable a la subvenció municipal","% subvenció / total","Import de l'aportació i/o Cofinançament de l'organització","Import total del projecte",null,"Partides","Import imputable a la subvenció municipal","% subvenció / total","Import de l'aportació i/o Cofinançament de l'organització","Import total del projecte",null,"Import imputable a la subvenció municipal","Import de l'aportació i/o Cofinançament de l'organització","Import total del projecte"]
["D1. Retribucions i seguretat social (règim general o socis/es cooperativistes en règim d’autònoms) del personal propi vinculat al projecte (màxim 40% subvenció)",{"$f":"SUM(B21:B25)","v":0},{"$f":"IF(B20>0,B20/$B$13,)","v":0},{"$f":"SUM(D21:D25)","v":0},{"$f":"B20+D20","v":0},null,"D1. Retribucions i seguretat social (règim general o socis/es cooperativistes en règim d’autònoms) del personal propi vinculat al projecte (màxim 40% subvenció)",{"$f":"SUM(H21:H25)","v":0},{"$f":"IF(H20>0,H20/$H$13,)","v":0},{"$f":"SUM(J21:J25)","v":0},{"$f":"+H20+J20","v":0},null,{"$f":"B20-H20","v":0},{"$f":"D20-J20","v":0},0]
[null,null,null,null,0,null,null,null,null,null,0,null,{"$f":"B21-H21","v":0},0,0]
[null,null,null,null,0,null,null,null,null,null,0,null,0,0,0]
[null,null,null,null,0,null,null,null,null,null,0,null,0,0,0]
[null,null,null,null,0,null,null,null,null,null,0,null,0,0,0]
[null,null,null,null,0,null,null,null,null,null,0,null,0,0,0]
["TOTAL DE DESPESES DEL PERSONAL\nMàxim 40% de l'import imputable a la subvenció municipal si es tracta de personal propi assignat directament al projecte subvencionat",{"$f":"B20","v":0},{"$f":"IF(B26>0,B26/$B$13,)","v":0},{"$f":"D20","v":0},{"$f":"E20","v":0},null,"TOTAL DE DESPESES DEL PERSONAL\nMàxim 40% de l'import imputable a la subvenció municipal si es tracta de personal propi assignat directament al projecte subvencionat",{"$f":"H20","v":0},{"$f":"IF(H26>0,H26/$H$13,)","v":0},{"$f":"J20","v":0},{"$f":"K20","v":0},null,{"$f":"B26-H26","v":0},{"$f":"D26-J26","v":0},0]
["D2. Treballs realitzats per professionals i empreses externes directament vinculades al projecte",{"$f":"SUM(B28:B32)","v":0},{"$f":"IF(B27>0,B27/$B$13,)","v":0},{"$f":"SUM(D28:D32)","v":0},{"$f":"B27+D27","v":0},null,"D2. Treballs realitzats per professionals i empreses externes directament vinculades al projecte",{"$f":"SUM(H28:H32)","v":0},{"$f":"IF(H27>0,H27/$H$13,)","v":0},{"$f":"SUM(J28:J32)","v":0},{"$f":"+H27+J27","v":0},null,0,{"$f":"D27-J27","v":0},0]
[null,null,null,null,0,null,null,null,null,null,0,null,0,0,0]
[null,null,null,null,0,null,null,null,null,null,0,null,0,0,0]
[null,null,null,null,0,null,null,null,null,null,0,null,0,0,0]
[null,null,null,null,0,null,null,null,null,null,0,null,0,0,0]
[null,null,null,null,0,null,null,null,null,null,0,null,0,0,0]
["D3. Adquisició de materials i béns consumibles íntegrament imputables al projecte ",{"$f":"SUM(B34:B38)","v":0},{"$f":"IF(B33>0,B33/$B$13,)","v":0},{"$f":"SUM(D34:D38)","v":0},{"$f":"B33+D33","v":0},null,"D3. Adquisició de materials i béns consumibles íntegrament imputables al projecte ",{"$f":"SUM(H34:H38)","v":0},{"$f":"IF(H33>0,H33/$H$13,)","v":0},{"$f":"SUM(J34:J38)","v":0},{"$f":"H33+J33","v":0},null,{"$f":"B33-H33","v":0},{"$f":"D33-J33","v":0},{"$f":"E33-K33","v":0}]
[null,null,null,null,0,null,null,null,null,null,0,null,{"$f":"B34-H34","v":0},0,0]
[null,null,null,null,0,null,null,null,null,null,0,null,0,0,0]
[null,null,null,null,0,null,null,null,null,null,0,null,0,0,0]
[null,null,null,null,0,null,null,null,null,null,0,null,0,0,0]
[null,null,null,null,0,null,null,null,null,null,{"$f":"+H38+J38","v":0},null,0,0,0]
["D4. Transport – missatgeria imputables al projecte",{"$f":"SUM(B40:B44)","v":0},{"$f":"IF(B39>0,B39/$B$13,)","v":0},{"$f":"SUM(D40:D44)","v":0},0,null,"D4. Transport – missatgeria imputables al projecte",{"$f":"SUM(H40:H44)","v":0},{"$f":"IF(H39>0,H39/$H$13,)","v":0},{"$f":"SUM(J40:J44)","v":0},{"$f":"H39+J39","v":0},null,{"$f":"B39-H39","v":0},{"$f":"D39-J39","v":0},{"$f":"E39-K39","v":0}]
[null,null,null,null,0,null,null,null,null,null,0,null,{"$f":"B40-H40","v":0},0,0]
[null,null,null,null,0,null,null,null,null,null,0,null,0,0,0]
[null,null,null,null,0,null,null,null,null,null,0,null,0,0,0]
[null,null,null,null,0,null,null,null,null,null,0,null,0,0,0]
[null,null,null,null,0,null,null,null,null,null,{"$f":"+H44+J44","v":0},null,0,0,0]
["D5. Publicitat i propaganda de les activitats directament vinculades al projecte",{"$f":"SUM(B46:B50)","v":0},{"$f":"IF(B45>0,B45/$B$13,)","v":0},{"$f":"SUM(D46:D50)","v":0},0,null,"D5. Publicitat i propaganda de les activitats directament vinculades al projecte",{"$f":"SUM(H46:H50)","v":0},{"$f":"IF(H45>0,H45/$H$13,)","v":0},{"$f":"SUM(J46:J50)","v":0},{"$f":"H45+J45","v":0},null,{"$f":"B45-H45","v":0},{"$f":"D45-J45","v":0},{"$f":"E45-K45","v":0}]
[null,null,null,null,0,null,null,null,null,null,0,null,{"$f":"B46-H46","v":0},0,0]
[null,null,null,null,0,null,null,null,null,null,0,null,0,0,0]
[null,null,null,null,0,null,null,null,null,null,0,null,0,0,0]
[null,null,null,null,0,null,null,null,null,null,0,null,0,0,0]
[null,null,null,null,0,null,null,null,null,null,{"$f":"+H50+J50","v":0},null,0,0,0]
["D6. Allotjament i dietes, del personal contractat i voluntari, vinculats al projecte",{"$f":"SUM(B52:B56)","v":0},{"$f":"IF(B51>0,B51/$B$13,)","v":0},{"$f":"SUM(D52:D56)","v":0},0,null,"D6. Allotjament i dietes, del personal contractat i voluntari, vinculats al projecte",{"$f":"SUM(H52:H56)","v":0},{"$f":"IF(H51>0,H51/$H$13,)","v":0},{"$f":"SUM(J52:J56)","v":0},{"$f":"H51+J51","v":0},null,{"$f":"B51-H51","v":0},{"$f":"D51-J51","v":0},{"$f":"E51-K51","v":0}]
[null,null,null,null,0,null,null,null,null,null,0,null,{"$f":"B52-H52","v":0},0,0]
[null,null,null,null,0,null,null,null,null,null,0,null,0,0,0]
[null,null,null,null,0,null,null,null,null,null,0,null,0,0,0]
[null,null,null,null,0,null,null,null,null,null,0,null,0,0,0]
[null,null,null,null,0,null,null,null,null,null,{"$f":"+H56+J56","v":0},null,0,0,0]
["D7. Ajuts al transport per als/les participants dels projectes en cas que sigui necessari de manera justificada",{"$f":"SUM(B58:B62)","v":0},{"$f":"IF(B57>0,B57/$B$13,)","v":0},{"$f":"SUM(D58:D62)","v":0},0,null,"D7. Ajuts al transport per als/les participants dels projectes en cas que sigui necessari de manera justificada",{"$f":"SUM(H58:H62)","v":0},{"$f":"IF(H57>0,H57/$H$13,)","v":0},{"$f":"SUM(J58:J62)","v":0},{"$f":"H57+J57","v":0},null,{"$f":"B57-H57","v":0},{"$f":"D57-J57","v":0},{"$f":"E57-K57","v":0}]
[null,null,null,null,0,null,null,null,null,null,0,null,{"$f":"B58-H58","v":0},0,0]
[null,null,null,null,0,null,null,null,null,null,0,null,0,0,0]
[null,null,null,null,0,null,null,null,null,null,0,null,0,0,0]
[null,null,null,null,0,null,null,null,null,null,0,null,0,0,0]
[null,null,null,null,0,null,null,null,null,null,{"$f":"+H62+J62","v":0},null,0,0,0]
["D8. Viatges i desplaçaments imputables a les activitats del projecte",{"$f":"SUM(B64:B68)","v":0},{"$f":"IF(B63>0,B63/$B$13,)","v":0},{"$f":"SUM(D64:D68)","v":0},0,null,"D8. Viatges i desplaçaments imputables a les activitats del projecte",{"$f":"SUM(H64:H68)","v":0},{"$f":"IF(H63>0,H63/$H$13,)","v":0},{"$f":"SUM(J64:J68)","v":0},{"$f":"H63+J63","v":0},null,{"$f":"B63-H63","v":0},{"$f":"D63-J63","v":0},{"$f":"E63-K63","v":0}]
[null,null,null,null,0,null,null,null,null,null,0,null,{"$f":"B64-H64","v":0},0,0]
[null,null,null,null,0,null,null,null,null,null,0,null,0,0,0]
[null,null,null,null,0,null,null,null,null,null,0,null,0,0,0]
[null,null,null,null,0,null,null,null,null,null,0,null,0,0,0]
[null,null,null,null,0,null,null,null,null,null,{"$f":"+H68+J68","v":0},null,0,0,0]
["D9. Tributs, quan siguin abonats directament per la persona jurídica beneficiària",{"$f":"SUM(B70:B74)","v":0},{"$f":"IF(B69>0,B69/$B$13,)","v":0},{"$f":"SUM(D70:D74)","v":0},0,null,"D9. Tributs, quan siguin abonats directament per la persona jurídica beneficiària",{"$f":"SUM(H70:H74)","v":0},{"$f":"IF(H69>0,H69/$H$13,)","v":0},{"$f":"SUM(J70:J74)","v":0},{"$f":"H69+J69","v":0},null,{"$f":"B69-H69","v":0},{"$f":"D69-J69","v":0},{"$f":"E69-K69","v":0}]
[null,null,null,null,0,null,null,null,null,null,0,null,{"$f":"B70-H70","v":0},0,0]
[null,null,null,null,0,null,null,null,null,null,0,null,0,0,0]
[null,null,null,null,0,null,null,null,null,null,0,null,0,0,0]
[null,null,null,null,0,null,null,null,null,null,0,null,0,0,0]
[null,null,null,null,0,null,null,null,null,null,{"$f":"+H74+J74","v":0},null,0,0,0]
["D10. Altres despeses que de manera justificada i per la tipologia del projecte puguin imputar-se directament al projecte",{"$f":"SUM(B76:B80)","v":0},{"$f":"IF(B75>0,B75/$B$13,)","v":0},{"$f":"SUM(D76:D80)","v":0},0,null,"D10. Altres despeses que de manera justificada i per la tipologia del projecte puguin imputar-se directament al projecte",{"$f":"SUM(H76:H80)","v":0},{"$f":"IF(H75>0,H75/$H$13,)","v":0},{"$f":"SUM(J76:J80)","v":0},{"$f":"H75+J75","v":0},null,{"$f":"B75-H75","v":0},{"$f":"D75-J75","v":0},0]
[null,null,null,null,0,null,null,null,null,null,0,null,{"$f":"B76-H76","v":0},0,0]
[null,null,null,null,0,null,null,null,null,null,0,null,0,0,0]
[null,null,null,null,0,null,null,null,null,null,0,null,0,0,0]
[null,null,null,null,0,null,null,null,null,null,0,null,0,0,0]
[null,null,null,null,0,null,null,null,null,null,{"$f":"+H80+J80","v":0},null,0,0,0]
["TOTAL D'ALTRES DESPESES DIRECTES ",{"$f":"B27+B33+B39+B45+B51+B57+B63+B69+B75","v":0},{"$f":"IF(B81>0,B81/$B$13,)","v":0},{"$f":"D27+D33+D39+D45+D51+D57+D63+D69+D75","v":0},{"$f":"E27+E33+E39+E45+E51+E57+E63+E69+E75","v":0},null,"TOTAL D'ALTRES DESPESES DIRECTES ",{"$f":"H27+H33+H39+H45+H51+H57+H63+H69+H75","v":0},{"$f":"IF(H81>0,H81/$H$13,)","v":0},{"$f":"J27+J33+J39+J45+J51+J57+J63+J69+J75","v":0},{"$f":"K27+K33+K39+K45+K51+K57+K63+K69+K75","v":0},null,{"$f":"B81-H81","v":0},{"$f":"D81-J81","v":0},0]
["TOTAL DESPESES DIRECTES (aquelles que s’identifiquen directament amb el projecte subvencionable)",{"$f":"SUM(B26,B81)","v":0},{"$f":"IF(B82>0,B82/$B$13,)","v":0},{"$f":"SUM(D26,D81)","v":0},{"$f":"E26+E81","v":0},null,"TOTAL DESPESES DIRECTES (aquelles que s’identifiquen directament amb el projecte subvencionable)",{"$f":"SUM(H26,H81)","v":0},{"$f":"IF(H82>0,H82/$H$13,)","v":0},{"$f":"SUM(J26,J81)","v":0},{"$f":"K26+K81","v":0},null,0,{"$f":"D82-J82","v":0},0]
["I1. Personal de suport al projecte (nòmines i seguretat social) ",{"$f":"SUM(B84:B87)","v":0},null,{"$f":"SUM(D84:D87)","v":0},{"$f":"+B83+D83","v":0},null,"I1. Personal de suport al projecte (nòmines i seguretat social) ",{"$f":"SUM(H84:H87)","v":0},null,{"$f":"SUM(J84:J87)","v":0},{"$f":"+H83+J83","v":0},null,0,{"$f":"D83-J83","v":0},0]
[null,null,null,null,0,null,null,null,null,null,0,null,0,0,0]
[null,null,null,null,0,null,null,null,null,null,0,null,0,0,0]
[null,null,null,null,0,null,null,null,null,null,0,null,0,0,0]
[null,null,null,null,0,null,null,null,null,null,0,null,0,0,0]
["I2. Assegurances",{"$f":"SUM(B89:B92)","v":0},null,{"$f":"SUM(D89:D92)","v":0},0,null,"I2. Assegurances",{"$f":"SUM(H89:H92)","v":0},null,{"$f":"SUM(J89:J92)","v":0},0,null,{"$f":"B88-H88","v":0},{"$f":"D88-J88","v":0},0]
[null,null,null,null,0,null,null,null,null,null,0,null,{"$f":"B89-H89","v":0},0,0]
[null,null,null,null,0,null,null,null,null,null,0,null,0,0,0]
[null,null,null,null,0,null,null,null,null,null,0,null,0,0,0]
[null,null,null,null,0,null,null,null,null,null,0,null,0,0,0]
["I3. Amortització",{"$f":"SUM(B94:B97)","v":0},null,{"$f":"SUM(D94:D97)","v":0},0,null,"I3. Amortització",{"$f":"SUM(H94:H97)","v":0},null,{"$f":"SUM(J94:J97)","v":0},0,null,{"$f":"B93-H93","v":0},{"$f":"D93-J93","v":0},0]
[null,null,null,null,0,null,null,null,null,null,0,null,{"$f":"B94-H94","v":0},0,0]
[null,null,null,null,0,null,null,null,null,null,0,null,0,0,0]
[null,null,null,null,0,null,null,null,null,null,0,null,0,0,0]
[null,null,null,null,0,null,null,null,null,null,0,null,0,0,0]
["I4. Lloguer de béns immobles",{"$f":"SUM(B99:B102)","v":0},null,{"$f":"SUM(D99:D102)","v":0},0,null,"I4. Lloguer de béns immobles",{"$f":"SUM(H99:H102)","v":0},null,{"$f":"SUM(J99:J102)","v":0},0,null,{"$f":"B98-H98","v":0},{"$f":"D98-J98","v":0},0]
[null,null,null,null,0,null,null,null,null,null,0,null,{"$f":"B99-H99","v":0},0,0]
[null,null,null,null,0,null,null,null,null,null,0,null,0,0,0]
[null,null,null,null,0,null,null,null,null,null,0,null,0,0,0]
[null,null,null,null,0,null,null,null,null,null,0,null,0,0,0]
["I5. Adquisició de materials i béns consumibles parcialment imputables al projecte",{"$f":"SUM(B104:B107)","v":0},null,{"$f":"SUM(D104:D107)","v":0},0,null,"I5. Adquisició de materials i béns consumibles parcialment imputables al projecte",{"$f":"SUM(H104:H107)","v":0},null,{"$f":"SUM(J104:J107)","v":0},0,null,{"$f":"B103-H103","v":0},{"$f":"D103-J103","v":0},0]
[null,null,null,null,0,null,null,null,null,null,0,null,{"$f":"B104-H104","v":0},0,0]
[null,null,null,null,0,null,null,null,null,null,0,null,0,0,0]
[null,null,null,null,0,null,null,null,null,null,0,null,0,0,0]
[null,null,null,null,0,null,null,null,null,null,0,null,0,0,0]
["I6. Manteniment d’edificis i/o instal·lacions",{"$f":"SUM(B109:B112)","v":0},null,{"$f":"SUM(D109:D112)","v":0},0,null,"I6. Manteniment d’edificis i/o instal·lacions",{"$f":"SUM(H109:H112)","v":0},null,{"$f":"SUM(J109:J112)","v":0},0,null,{"$f":"B108-H108","v":0},{"$f":"D108-J108","v":0},0]
[null,null,null,null,0,null,null,null,null,null,0,null,{"$f":"B109-H109","v":0},0,0]
[null,null,null,null,0,null,null,null,null,null,0,null,0,0,0]
[null,null,null,null,0,null,null,null,null,null,0,null,0,0,0]
[null,null,null,null,0,null,null,null,null,null,0,null,0,0,0]
["I7. Comunicacions (telèfon, correus, connexió a internet)",{"$f":"SUM(B114:B117)","v":0},null,{"$f":"SUM(D114:D117)","v":0},0,null,"I7. Comunicacions (telèfon, correus, connexió a internet)",{"$f":"SUM(H114:H117)","v":0},null,{"$f":"SUM(J114:J117)","v":0},0,null,{"$f":"B113-H113","v":0},{"$f":"D113-J113","v":0},0]
[null,null,null,null,0,null,null,null,null,null,0,null,{"$f":"B114-H114","v":0},0,0]
[null,null,null,null,0,null,null,null,null,null,0,null,0,0,0]
[null,null,null,null,0,null,null,null,null,null,0,null,0,0,0]
[null,null,null,null,0,null,null,null,null,null,0,null,0,0,0]
["I8. Despeses financeres",{"$f":"SUM(B119:B122)","v":0},null,{"$f":"SUM(D119:D122)","v":0},0,null,"I8. Despeses financeres",{"$f":"SUM(H119:H122)","v":0},null,{"$f":"SUM(J119:J122)","v":0},0,null,{"$f":"B118-H118","v":0},{"$f":"D118-J118","v":0},0]
[null,null,null,null,0,null,null,null,null,null,0,null,{"$f":"B119-H119","v":0},0,0]
[null,null,null,null,0,null,null,null,null,null,0,null,0,0,0]
[null,null,null,null,0,null,null,null,null,null,0,null,0,0,0]
[null,null,null,null,0,null,null,null,null,null,0,null,0,0,0]
["I9. Subministraments",{"$f":"SUM(B124:B127)","v":0},null,{"$f":"SUM(D124:D127)","v":0},0,null,"I9. Subministraments",{"$f":"SUM(H124:H127)","v":0},null,{"$f":"SUM(J124:J127)","v":0},0,null,{"$f":"B123-H123","v":0},{"$f":"D123-J123","v":0},0]
[null,null,null,null,0,null,null,null,null,null,0,null,{"$f":"B124-H124","v":0},0,0]
[null,null,null,null,0,null,null,null,null,null,0,null,0,0,0]
[null,null,null,null,0,null,null,null,null,null,0,null,0,0,0]
[null,null,null,null,0,null,null,null,null,null,0,null,0,0,0]
["I10. Treball realitzat per altres empreses, parcialment imputables al projecte (neteja, seguretat...)",{"$f":"SUM(B129:B132)","v":0},null,{"$f":"SUM(D129:D132)","v":0},0,null,"I10. Treball realitzat per altres empreses, parcialment imputables al projecte (neteja, seguretat...)",{"$f":"SUM(H129:H132)","v":0},null,{"$f":"SUM(J129:J132)","v":0},0,null,{"$f":"B128-H128","v":0},{"$f":"D128-J128","v":0},0]
[null,null,null,null,0,null,null,null,null,null,0,null,{"$f":"B129-H129","v":0},0,0]
[null,null,null,null,0,null,null,null,null,null,0,null,0,0,0]
[null,null,null,null,0,null,null,null,null,null,0,null,0,0,0]
[null,null,null,null,0,null,null,null,null,null,0,null,0,0,0]
["TOTAL DESPESES INDIRECTES (es podran assignar al projecte subvencionable fent sevir un percentatge d’assignació) - Màxim 10% de l’import imputable a la subvenció municipal",{"$f":"SUM(B83,B88,B93,B98,B103,B108,B113,B118,B123,B128)","v":0},{"$f":"IF(B133>0,B133/$B$13,)","v":0},{"$f":"SUM(D83,D88,D93,D98,D103,D108,D113,D118,D123,D128)","v":0},{"$f":"E83+E88+E93+E98+E103+E108+E113+E118+E123+E128","v":0},null,"TOTAL DESPESES INDIRECTES (es podran assignar al projecte subvencionable fent sevir un percentatge d’assignació) - Màxim 10% de l’import imputable a la subvenció municipal",{"$f":"SUM(H83,H88,H93,H98,H103,H108,H113,H118,H123,H128)","v":0},{"$f":"IF(H133>0,H133/$H$13,)","v":0},{"$f":"SUM(J83,J88,J93,J98,J103,J108,J113,J118,J123,J128)","v":0},{"$f":"K83+K88+K93+K98+K103+K108+K113+K118+K123+K128","v":0},{"$f":"+IF(H133>H13*0.1,\"ALERTA: Màxim 10% import imputable a la subvenció municipal\", \" \")","v":" "},{"$f":"B133-H133","v":0},{"$f":"D133-J133","v":0},0]
["TOTAL DE DESPESES PREVISTES",{"$f":"SUM(B82+B133)","v":0},{"$f":"IF(B134>0,B134/$B$13,)","v":0},{"$f":"SUM(D82+D133)","v":0},{"$f":"SUM(E82+E133)","v":0},null,"TOTAL DE DESPESES PREVISTES",{"$f":"SUM(H82+H133)","v":0},{"$f":"IF(H134>0,H134/$H$13,)","v":0},{"$f":"SUM(J82+J133)","v":0},0,null,0,{"$f":"D134-J134","v":0},0]
[null,{"$f":"IF(B134>B13,\"La suma del detall de despeses no pot ser superior a l'import total de subvenció municipal indicat al requadre\",(IF(B134<B13,\"La suma del detall de despeses no pot ser inferior a l'import total de subvenció municipal indicat al requadre\",\"\")))","v":""},null,{"$f":"IF(D134>B14,\"La suma del detall de despeses no pot ser superior a l'import total de l'aportació/confinançament indicat al requadre\",(IF(D134<B14,\"La suma del detall de despeses no pot ser inferior a l'import total de l'aportació/confinançament indicat al requadre\",\"\")))","v":""},{"$f":"IF(E134>B12,\"La suma del detall de despeses no pot ser superior a l'import total del projecte indicat al requadre\",(IF(E134<B12,\"La suma del detall de despeses no pot ser inferior a l'import total del projecte indicat al requadre\",\"\")))","v":""},null,null,{"$f":"IF(H134>H13,\"La suma del detall de despeses no pot ser superior a l'import total de subvenció municipal indicat al requadre\",(IF(H134<H13,\"La suma del detall de despeses no pot ser inferior a l'import total de subvenció municipal indicat al requadre\",\"\")))","v":""},null,{"$f":"IF(J134>H14,\"La suma del detall de despeses no pot ser superior a l'import total de l'aportació/confinançament indicat al requadre\",(IF(J134<H14,\"La suma del detall de despeses no pot ser inferior a l'import total de l'aportació/confinançament indicat al requadre\",\"\")))","v":""},{"$f":"IF(K134>H12,\"La suma del detall de despeses no pot ser superior a l'import total del projecte indicat al requadre\",(IF(K134<H12,\"La suma del detall de despeses no pot ser inferior a l'import total del projecte indicat al requadre\",\"\")))","v":""}]
["Modalitat Bc: Projectes d’implementació i accions d’intercooperació significatives pel desenvolupament dels Projectes de Ciutat de l’#ESSBCN2030"]
[" 1. La quantia de la subvenció atorgada no superarà el 80% de la despesa total del projecte a subvencionar. "]
[" 2. L'import màxim de subvenció per a aquesta modalitat Bc és 18.000€.\n"]
[" 3. En el cas que la sol·licitud presentada sobrepassi l’import màxim, es considerarà com a import sol·licitat el màxim de l'establert a la convocatòria."]
[" 4. En aquesta modalitat s’acceptarà la imputació de despeses de personal propi i directament vinculat al projecte de les organitzacions participants de l’acord de d’intercooperació presentat pel desenvolupament del projecte subvencionable."]
[" 5. Es limita amb un màxim del 40% l’import de la subvenció per a despeses de personal propi assignat directament al projecte subvencionat."]
[" 6. En el cas de lloguers d’immobles les despeses de lloguer s’imputaran a les despeses indirectes amb el límit establert per aquestes despeses indirectes."]
[" 7. Per a les subvencions atorgades per import igual o superior a 20.000 € és obligatori un informe d'auditoria per a la justificació. L'import d'aquest informe es considera despesa subvencionable, amb un límit màxim de 1.500€."]
[" 8. Són imputables en aquesta modalitat les despeses indirectes, detallades en l’apartat 13.3. de les bases reguladores; amb un màxim del 10% de l'import de la subvenció.\nEl caràcter subvencionable de la despesa d'amortització estarà subjecte a les condicions següents:\n> Que les subvencions no hagin contribuït a la compra dels béns.\n> Que l'amortització es calculi de conformitat amb les normes de comptabilitat generalment acceptades.\n> Que el cost es refereixi al període subvencionable.\n\n"]
[" 9. No es poden imputar en cap cas despeses d’inversió, corresponents a partides de l'immobilitzat, amb els diners de la subvenció atorgada en aquesta convocatòria específica. Sí que es poden imputar a la part  de contribució, sempre que siguin despeses dins el període executiu del projecte subvencionat i acreditables tal i com es descriu a les bases reguladores vigents."]
[" 10. Els projectes d'aquesta modalitat hauran de lliurar a la seva finalització un producte comunicatiu, d'acord amb el contingut establert a la convocatòria de la subvenció."]
[" 11. No seran elegibles factures d'empreses emeses entre les organitzacions participants de l'acord de col·laboració."]
[" 12. En cap cas es consideraran despeses subvencionables:\n > Els impostos indirectes quan siguin susceptibles de recuperació o compensació.\n > Les despeses d'inversió, incloses les adquisicions de béns mobles.\n > Les despeses realitzades amb data anterior a l'inici del projecte i data posterior a la finalització del projecte.\n > Altres despeses que s'indiquin a la convocatòria."]
[" 13. La retribució de les persones contractades en el marc del projecte subvencionat no pot ser inferior al Salari Mínim Interprofessional (SMI), ni a l'estipulada al corresponent conveni o marc normatiu de referència (punt 7 de les bases 2025: requisits dels projectes). "]
[" 14. Els materials produïts de difusió, estudis, informes o materials didàctics utilitzats, etc. en el cas de tractar-se de despesa elegible de la subvenció, hauran de tenir llicència Creative Commons -Compartir Igual- (share a like) i no podrà tenir la condició –Sense Obres Derivades- (no derivate Works)."]
[" 15. Els projectes subvencionats han de fomentar activitats d'interès públic o social, les quals han de ser gratuïtes per a les persones participants o en cap cas el preu ha de suposar un obstacle per a la seva participació, buscant altres formes d'accés per a persones amb dificultats econòmiques. En el cas que hi hagi algun tipus de lucre, haurà de revertir en les pròpies activitats subvencionades."]
[" 16. L'Ajuntament de Barcelona i les seves entitats municipals en cap cas subvencionaran el mateix projecte, executat durant el mateix període, per cap altre procediment de concessió que no sigui el regulat per les bases reguladores."]
[" 17. El/la beneficiari/ària no podrà alterar en cap cas el destí de les subvencions concedides."]
[" 18. L'organització designada com a representant de l'agrupació serà plenament responsable del projecte davant l'Ajuntament respecte al compliment de les obligacions establertes en les bases reguladores, sense perjudici de la responsabilitat de les altres organitzacions sòcies de l'agrupació, tot sent-li d'aplicació els requisits previstos al punt 6.1 de les bases reguladores."]
[" 19. En cap cas podran formar part de l'agrupació les organitzacions que hagin rebut altres subvencions per a l'execució del mateix projecte d'altres administracions públiques."]
[" 20. En cas de realitzar-se despeses superiors als imports establerts pels contractes menors de serveis, subministraments i obres de la Llei de Contractes del Sector Públic 9/2017, s’hauran d'incorporar tres pressupostos sol·licitats i argumentar el motiu de l'adjudicació en el cas de no ser la proposta més avantatjosa econòmicament."]
[" 21. En el cas de presentar tiquets, el seu import no podrà superar el 10% de la subvenció i aniran acompanyats d'una declaració responsable del representant legal de la  persona jurídica o de l'agrupació de persones jurídiques que indicarà en quin concepte s'imputa aquesta despesa."]
[" 22. En cas de realitzar-se despeses superiors als imports establerts pels contractes menors de serveis, subministraments i obres de la Llei de Contractes del Sector Públic 9/2017, s’hauran d'incorporar tres pressupostos sol·licitats i argumentar el motiu de l'adjudicació en el cas de no ser la proposta més avantatjosa econòmicament."]

{"sheet":"Resum Pressupost","index":2,"n_rows":27,"n_cols":12,"rows_kept":27,"cut":false,"hidden":false,"merged":[[26,7,26,10],[6,7,7,8],[6,9,7,9],[6,10,7,10],[9,7,10,7],[9,8,10,8],[9,9,10,9],[9,10,10,10],[12,7,13,7],[12,8,13,8],[12,9,13,9],[12,10,13,10],[21,7,21,8],[19,3,20,3],[19,4,20,4],[19,5,20,5],[1,2,2,8],[3,0,3,9],[5,0,5,1],[6,0,7,1],[6,2,7,3],[6,4,7,5],[10,0,11,0],[19,0,20,1],[19,2,20,2]]}
[]
[null,null,"Resum pressupost Bc"]
[]
["Subvencions de l'Ajuntament de Barcelona per l'enfortiment de l'Economia Social i Solidària i per la intercooperació en l'Estratègia #ESSBCN2030 - ENFORTIM L’ESS 2025",null,null,null,null,null,null,null,null,null,"MODALITAT Bc"]
[]
["DESPESES PREVISTES",null,"SOL·LICITUD INICIAL","REFORMULACIÓ","SOL·LICITUD INICIAL","REFORMULACIÓ",null,"INGRESSOS PREVISTOS",null,"SOL·LICITUD INICIAL","REFORMULACIÓ"]
["Despeses directes \n(aquelles que s'identifiquen directament amb el projecte)",null,"Cost total",null,"Subvenció",null,null,"Ingressos previstos",null,"Previsió inicial ingrés total","Previsió reformulada ingrés total"]
[]
["Bc","D1. Retribucions i seguretat social (règim general o socis/es cooperativistes en règim d’autònoms) del personal propi vinculat al projecte (màxim 40% subvenció)",{"$f":"+'Reformulació Pressupost Bc'!E20","v":0},{"$f":"+'Reformulació Pressupost Bc'!K20","v":0},{"$f":"+'Reformulació Pressupost Bc'!B20","v":0},{"$f":"+'Reformulació Pressupost Bc'!H20","v":0},null,"A.","Subvenció municipal (import sol·licitat a la instància/atorgat)",{"$f":"'Reformulació Pressupost Bc'!B13","v":0},{"$f":"'Reformulació Pressupost Bc'!H13","v":0}]
[null,"D2. Treballs realitzats per professionals i empreses externes directament vinculades al projecte",{"$f":"+'Reformulació Pressupost Bc'!E27","v":0},{"$f":"+'Reformulació Pressupost Bc'!K27","v":0},{"$f":"+'Reformulació Pressupost Bc'!B27","v":0},{"$f":"+'Reformulació Pressupost Bc'!H27","v":0},null,"B.","Subvencions d'altres administracions"]
[null,"D3. Adquisició de materials i béns consumibles íntegrament imputables al projecte ",{"$f":"+'Reformulació Pressupost Bc'!E33","v":0},{"$f":"+'Reformulació Pressupost Bc'!K33","v":0},{"$f":"+'Reformulació Pressupost Bc'!B33","v":0},{"$f":"+'Reformulació Pressupost Bc'!H33","v":0},null,null,null,null,null,{"$f":"+IF(K11<0,\"No s'admeten valors negatius\",\"\")","v":""}]
[null,"D4. Transport – missatgeria imputables al projecte",{"$f":"+'Reformulació Pressupost Bc'!E39","v":0},{"$f":"+'Reformulació Pressupost Bc'!K39","v":0},{"$f":"+'Reformulació Pressupost Bc'!B39","v":0},{"$f":"+'Reformulació Pressupost Bc'!H39","v":0},null,"C.","Subvencions d'ens privats",null,null,""]
[null,"D5. Publicitat i propaganda de les activitats directament vinculades al projecte",{"$f":"+'Reformulació Pressupost Bc'!E45","v":0},{"$f":"+'Reformulació Pressupost Bc'!K45","v":0},{"$f":"+'Reformulació Pressupost Bc'!B45","v":0},{"$f":"+'Reformulació Pressupost Bc'!H45","v":0},null,"D.","Recursos propis de l'organització aplicats al projecte"]
[null,"D6. Allotjament i dietes, del personal contractat i voluntari, vinculats al projecte",{"$f":"+'Reformulació Pressupost Bc'!E51","v":0},{"$f":"+'Reformulació Pressupost Bc'!K51","v":0},{"$f":"+'Reformulació Pressupost Bc'!B51","v":0},{"$f":"+'Reformulació Pressupost Bc'!H51","v":0}]
[null,"D7. Ajuts al transport per als/les participants dels projectes en cas que sigui necessari de manera justificada",{"$f":"+'Reformulació Pressupost Bc'!E57","v":0},{"$f":"+'Reformulació Pressupost Bc'!K57","v":0},{"$f":"+'Reformulació Pressupost Bc'!B57","v":0},{"$f":"+'Reformulació Pressupost Bc'!H57","v":0},null,"E.","Taquillatge"]
[null,"D8. Viatges i desplaçaments imputables a les activitats del projecte",{"$f":"+'Reformulació Pressupost Bc'!E63","v":0},{"$f":"+'Reformulació Pressupost Bc'!K63","v":0},{"$f":"+'Reformulació Pressupost Bc'!B63","v":0},{"$f":"+'Reformulació Pressupost Bc'!H63","v":0},null,"F.","Quotes d'inscripció"]
[null,"D9. Tributs, quan siguin abonats directament per la persona jurídica o física beneficiària",{"$f":"+'Reformulació Pressupost Bc'!E65","v":0},{"$f":"+'Reformulació Pressupost Bc'!K65","v":0},{"$f":"+'Reformulació Pressupost Bc'!B65","v":0},{"$f":"+'Reformulació Pressupost Bc'!H65","v":0},null,"G.","Venda de Productes"]
[null,"D10. Altres despeses que de manera justificada i per la tipologia del projecte puguin imputar-se directament al projecte",{"$f":"+'Reformulació Pressupost Bc'!E75","v":0},{"$f":"+'Reformulació Pressupost Bc'!K75","v":0},{"$f":"+'Reformulació Pressupost Bc'!B75","v":0},{"$f":"+'Reformulació Pressupost Bc'!H75","v":0},null,"H","Publicitat i/o Esponsorització"]
[null,"Total Despeses Directes   ",{"$f":"SUM(C9:C18)","v":0},{"$f":"SUM(D9:D18)","v":0},{"$f":"SUM(E9:E18)","v":0},{"$f":"SUM(F9:F18)","v":0},null,"I.","Altres ingressos"]
["Despeses indirectes (màxim 10% subvenció)",null,"Indirectes inicial total","Indirectes reform. Total","Indirectes inicial subvenció","Indirectes reform. subvenció",null,null,"Total Ingressos",{"$f":"SUM(J9:J19)","v":0},0]
[]
[null,"Total Despeses Indirectes   ",{"$f":"'Reformulació Pressupost Bc'!E133","v":0},{"$f":"'Reformulació Pressupost Bc'!K133","v":0},{"$f":"'Reformulació Pressupost Bc'!B133","v":0},{"$f":"'Reformulació Pressupost Bc'!H133","v":0},null,"Ingressos menys despeses ",null,{"$f":"+J20-C23","v":0},{"$f":"+K20-D23","v":0}]
[null,"Total Despeses ",{"$f":"+C19+C22","v":0},0,0,0]
[null,null,null,null,null,null,null,null,null,"% subvencionat inicialment",{"$f":"IF(J9>0,J9/C23,\"\")","v":""}]
[]
[null,null,null,null,null,null,null,null,null,"% subvencionat després de reformular",{"$f":"IF(K9>9,K9/D23,\"\")","v":""},"*"]
[null,null,null,null,null,null,null,"*Aquest percentatge ha de ser igual o menor al percentatge subvencionat inicialment."]